[Event "Early-Titled-Tuesday-Blitz-October-03-2023"]
[Site "Chess.com"]
[Date "2023.10.03"]
[Round "10"]
[White "VOneChess"]
[Black "Quattroporte300"]
[Result "1-0"]
[WhiteElo "2267"]
[BlackElo "2367"]
[TimeControl "180+1"]
[EndTime "9:55:46 PDT"]
[Termination "VOneChess won by checkmate"]

1. e4 {[%clk 0:03:00.9]} 1... c5 {[%clk 0:02:58.5]} 2. Nf3 {[%clk 0:03:00.4]}
2... d6 {[%clk 0:02:58]} 3. d4 {[%clk 0:03:01.1]} 3... cxd4 {[%clk 0:02:58.3]}
4. Nxd4 {[%clk 0:03:02]} 4... Nf6 {[%clk 0:02:58.7]} 5. Nc3 {[%clk 0:03:02.7]}
5... a6 {[%clk 0:02:58.8]} 6. Bg5 {[%clk 0:03:03.4]} 6... Nbd7 {[%clk
0:02:58.4]} 7. f4 {[%clk 0:03:03.6]} 7... g6 {[%clk 0:02:58.1]} 8. Qf3 {[%clk
0:03:02.9]} 8... Bg7 {[%clk 0:02:58.5]} 9. O-O-O {[%clk 0:03:02.5]} 9... Qc7
{[%clk 0:02:53.8]} 10. Bd3 {[%clk 0:02:45.3]} 10... b5 {[%clk 0:02:51.8]} 11.
Rhe1 {[%clk 0:02:43.2]} 11... Bb7 {[%clk 0:02:51]} 12. Nd5 {[%clk 0:02:41.7]}
12... Nxd5 {[%clk 0:02:42.1]} 13. exd5 {[%clk 0:02:42.6]} 13... Nf6 {[%clk
0:02:41]} 14. Nc6 {[%clk 0:02:33.6]} 14... Bxc6 {[%clk 0:02:37.9]} 15. dxc6
{[%clk 0:02:34.5]} 15... O-O {[%clk 0:02:38.2]} 16. g4 {[%clk 0:02:30.4]} 16...
Rac8 {[%clk 0:02:35.6]} 17. Bxf6 {[%clk 0:02:26.6]} 17... Bxf6 {[%clk
0:02:34.6]} 18. g5 {[%clk 0:02:26.6]} 18... Bg7 {[%clk 0:02:30.7]} 19. f5 {[%clk
0:02:23.4]} 19... Be5 {[%clk 0:02:26]} 20. Be4 {[%clk 0:02:12.4]} 20... Kg7
{[%clk 0:02:22.4]} 21. h4 {[%clk 0:01:39.9]} 21... f6 {[%clk 0:02:15.5]} 22. h5
{[%clk 0:01:23.5]} 22... fxg5 {[%clk 0:02:12.6]} 23. hxg6 {[%clk 0:01:23.5]}
23... h6 {[%clk 0:02:09.7]} 24. Rh1 {[%clk 0:01:20.4]} 24... a5 {[%clk
0:02:02.1]} 25. Rxh6 {[%clk 0:01:05.3]} 25... Rh8 {[%clk 0:01:54.6]} 26. Rdh1
{[%clk 0:00:49.3]} 26... Bf4+ {[%clk 0:00:41]} 27. Kb1 {[%clk 0:00:48.2]} 27...
Rxh6 {[%clk 0:00:25.7]} 28. Rxh6 {[%clk 0:00:49.1]} 28... Kxh6 {[%clk
0:00:26.1]} 29. Qh3+ {[%clk 0:00:48.9]} 29... Kg7 {[%clk 0:00:26.7]} 30. Qh7+
{[%clk 0:00:49.8]} 30... Kf6 {[%clk 0:00:27.1]} 31. Qf7+ {[%clk 0:00:50.7]}
31... Ke5 {[%clk 0:00:27.2]} 32. Qd5+ {[%clk 0:00:51.6]} 32... Kf6 {[%clk
0:00:26.2]} 33. Qe6+ {[%clk 0:00:52.5]} 33... Kg7 {[%clk 0:00:26.4]} 34. Qf7+
{[%clk 0:00:53.4]} 34... Kh6 {[%clk 0:00:27]} 35. Qh7# {[%clk 0:00:54.3]} 1-0

[Event "Early-Titled-Tuesday-Blitz-October-03-2023"]
[Site "Chess.com"]
[Date "2023.10.03"]
[Round "10"]
[White "AsaHoffmann"]
[Black "curradogianfigliazzi"]
[Result "1-0"]
[WhiteElo "2385"]
[BlackElo "2262"]
[TimeControl "180+1"]
[EndTime "9:55:49 PDT"]
[Termination "AsaHoffmann won on time"]

1. d4 {[%clk 0:02:59.1]} 1... d5 {[%clk 0:02:59.5]} 2. Bg5 {[%clk 0:02:57.7]}
2... f6 {[%clk 0:02:58.2]} 3. Bf4 {[%clk 0:02:54.3]} 3... Nc6 {[%clk 0:02:55.7]}
4. Nf3 {[%clk 0:02:53.7]} 4... Bg4 {[%clk 0:02:55.4]} 5. Nbd2 {[%clk 0:02:53.1]}
5... Nxd4 {[%clk 0:02:39.5]} 6. Nxd4 {[%clk 0:02:49.7]} 6... e5 {[%clk
0:02:39.6]} 7. h3 {[%clk 0:02:47]} 7... Bd7 {[%clk 0:02:38.9]} 8. Be3 {[%clk
0:02:35.3]} 8... exd4 {[%clk 0:02:38.5]} 9. Bxd4 {[%clk 0:02:35.3]} 9... c5
{[%clk 0:02:39.2]} 10. Be3 {[%clk 0:02:35.2]} 10... Bd6 {[%clk 0:02:28.9]} 11.
c3 {[%clk 0:02:32.6]} 11... Ne7 {[%clk 0:02:26.9]} 12. Nf3 {[%clk 0:02:31.7]}
12... Qb6 {[%clk 0:02:17.8]} 13. Qb3 {[%clk 0:02:30.7]} 13... Qc7 {[%clk
0:02:05.3]} 14. g3 {[%clk 0:02:26.2]} 14... Nf5 {[%clk 0:01:32.2]} 15. Bd2
{[%clk 0:02:24.9]} 15... Be6 {[%clk 0:01:21.8]} 16. g4 {[%clk 0:02:15.8]} 16...
Ne7 {[%clk 0:01:18.4]} 17. Bg2 {[%clk 0:02:15.2]} 17... Kf7 {[%clk 0:01:18.1]}
18. Qc2 {[%clk 0:02:10.8]} 18... h5 {[%clk 0:01:07.5]} 19. g5 {[%clk 0:02:10]}
19... Bf5 {[%clk 0:01:04.5]} 20. Qc1 {[%clk 0:01:59.2]} 20... h4 {[%clk
0:00:57.4]} 21. O-O {[%clk 0:01:51.1]} 21... Qd7 {[%clk 0:00:52.4]} 22. Bf4
{[%clk 0:01:48.4]} 22... Bxh3 {[%clk 0:00:45.3]} 23. Bxd6 {[%clk 0:01:45.2]}
23... Bxg2 {[%clk 0:00:39.4]} 24. Bxe7 {[%clk 0:01:38]} 24... Qg4 {[%clk
0:00:30.3]} 25. Nh2 {[%clk 0:01:29.8]} 25... Qh3 {[%clk 0:00:17.6]} 26. Bxc5
{[%clk 0:01:22.3]} 26... Be4 {[%clk 0:00:13.8]} 27. f3 {[%clk 0:01:09.9]} 27...
Qg3+ {[%clk 0:00:06.1]} 28. Kh1 {[%clk 0:01:09.7]} 28... h3 {[%clk 0:00:03.9]}
29. Rg1 {[%clk 0:01:06.8]} 29... Qf2 {[%clk 0:00:03.3]} 30. fxe4 {[%clk
0:01:05.6]} 30... Qxc5 {[%clk 0:00:03.4]} 31. Qf4 {[%clk 0:01:03]} 31... dxe4
{[%clk 0:00:03]} 32. Raf1 {[%clk 0:01:01.2]} 1-0

[Event "Early-Titled-Tuesday-Blitz-October-03-2023"]
[Site "Chess.com"]
[Date "2023.10.03"]
[Round "10"]
[White "hakanazeri2"]
[Black "MidnightFox"]
[Result "1-0"]
[WhiteElo "2602"]
[BlackElo "2488"]
[TimeControl "180+1"]
[EndTime "9:56:00 PDT"]
[Termination "hakanazeri2 won by resignation"]

1. Nf3 {[%clk 0:03:00.9]} 1... g6 {[%clk 0:02:58]} 2. c4 {[%clk 0:02:59.1]} 2...
c5 {[%clk 0:02:57.7]} 3. Nc3 {[%clk 0:02:58.6]} 3... Bg7 {[%clk 0:02:56.4]} 4.
g3 {[%clk 0:02:59.1]} 4... Nc6 {[%clk 0:02:55.9]} 5. Bg2 {[%clk 0:02:59.6]} 5...
e6 {[%clk 0:02:56.6]} 6. O-O {[%clk 0:02:59.9]} 6... Nge7 {[%clk 0:02:57.2]} 7.
a3 {[%clk 0:02:59.8]} 7... O-O {[%clk 0:02:56.8]} 8. Rb1 {[%clk 0:03:00.4]} 8...
d5 {[%clk 0:02:57]} 9. d3 {[%clk 0:02:59.7]} 9... d4 {[%clk 0:02:43]} 10. Ne4
{[%clk 0:02:58]} 10... b6 {[%clk 0:02:36.3]} 11. b4 {[%clk 0:02:57.6]} 11...
cxb4 {[%clk 0:02:29.9]} 12. axb4 {[%clk 0:02:57.3]} 12... Bb7 {[%clk 0:02:27.2]}
13. c5 {[%clk 0:02:54.1]} 13... b5 {[%clk 0:02:20.5]} 14. Nd6 {[%clk 0:02:52.3]}
14... Rb8 {[%clk 0:02:11.2]} 15. Nxb7 {[%clk 0:02:40.6]} 15... Rxb7 {[%clk
0:02:11]} 16. Bd2 {[%clk 0:02:35.2]} 16... Nd5 {[%clk 0:02:09.8]} 17. Qb3 {[%clk
0:02:34.3]} 17... Qd7 {[%clk 0:02:03]} 18. Ng5 {[%clk 0:02:32.8]} 18... Ra8
{[%clk 0:01:42.1]} 19. Ra1 {[%clk 0:02:26.2]} 19... a5 {[%clk 0:01:38.5]} 20.
bxa5 {[%clk 0:02:26.2]} 20... b4 {[%clk 0:01:36.5]} 21. a6 {[%clk 0:02:23.8]}
21... Rba7 {[%clk 0:01:34]} 22. Bxd5 {[%clk 0:01:54.9]} 22... Qxd5 {[%clk
0:01:27]} 23. Qxd5 {[%clk 0:01:52.9]} 23... exd5 {[%clk 0:01:27.9]} 24. Rfb1
{[%clk 0:01:44.8]} 24... Rxa6 {[%clk 0:01:21.8]} 25. Rxa6 {[%clk 0:01:45.7]}
25... Rxa6 {[%clk 0:01:22.2]} 26. Bxb4 {[%clk 0:01:46.3]} 26... Ra2 {[%clk
0:01:18]} 27. Kf1 {[%clk 0:01:41.7]} 27... Bf8 {[%clk 0:01:08.1]} 28. Nf3 {[%clk
0:01:33.8]} 28... Rc2 {[%clk 0:01:07.1]} 29. Ne1 {[%clk 0:01:20.8]} 29... Ra2
{[%clk 0:01:04.4]} 30. Nf3 {[%clk 0:01:19.9]} 30... Rc2 {[%clk 0:01:04]} 31. Ba3
{[%clk 0:01:16.5]} 31... Bxc5 {[%clk 0:01:03.3]} 32. Bxc5 {[%clk 0:01:10.6]}
32... Rxc5 {[%clk 0:01:04.2]} 33. Rb7 {[%clk 0:01:04.7]} 33... h6 {[%clk
0:01:01.6]} 34. Rc7 {[%clk 0:01:01.6]} 34... Rc2 {[%clk 0:00:55.2]} 35. Ke1
{[%clk 0:00:49.9]} 35... Kg7 {[%clk 0:00:20.4]} 36. Kd1 {[%clk 0:00:48.2]} 36...
Nb4 {[%clk 0:00:18.5]} 37. Rxc2 {[%clk 0:00:47.7]} 1-0

[Event "Early-Titled-Tuesday-Blitz-October-03-2023"]
[Site "Chess.com"]
[Date "2023.10.03"]
[Round "10"]
[White "MajorCoast"]
[Black "rachidhuilda"]
[Result "0-1"]
[WhiteElo "2256"]
[BlackElo "2388"]
[TimeControl "180+1"]
[EndTime "9:56:01 PDT"]
[Termination "rachidhuilda won by resignation"]

1. d4 {[%clk 0:03:00.9]} 1... Nf6 {[%clk 0:02:59.2]} 2. Nf3 {[%clk 0:03:01.5]}
2... d5 {[%clk 0:02:58.8]} 3. c4 {[%clk 0:03:00.2]} 3... c6 {[%clk 0:02:58.6]}
4. Nbd2 {[%clk 0:02:57]} 4... g6 {[%clk 0:02:48.9]} 5. cxd5 {[%clk 0:02:54.6]}
5... cxd5 {[%clk 0:02:48.3]} 6. e3 {[%clk 0:02:54.5]} 6... Bg7 {[%clk
0:02:48.2]} 7. Bd3 {[%clk 0:02:53]} 7... O-O {[%clk 0:02:48]} 8. O-O {[%clk
0:02:53.1]} 8... Nc6 {[%clk 0:02:48.6]} 9. a3 {[%clk 0:02:48.4]} 9... Bf5 {[%clk
0:02:46.8]} 10. Nb3 {[%clk 0:02:44.8]} 10... Bxd3 {[%clk 0:02:45.5]} 11. Qxd3
{[%clk 0:02:45.7]} 11... Rc8 {[%clk 0:02:43.7]} 12. Nc5 {[%clk 0:02:42.9]} 12...
b6 {[%clk 0:02:39]} 13. Na4 {[%clk 0:02:40.6]} 13... Ne4 {[%clk 0:02:33]} 14.
Bd2 {[%clk 0:02:38.4]} 14... Nxd2 {[%clk 0:02:21.5]} 15. Qxd2 {[%clk 0:02:30.3]}
15... Na5 {[%clk 0:02:20.8]} 16. Nc3 {[%clk 0:02:22.4]} 16... Nb3 {[%clk
0:02:18.7]} 17. Qd3 {[%clk 0:02:19.7]} 17... Nxa1 {[%clk 0:02:18.7]} 18. Rxa1
{[%clk 0:02:20.6]} 18... e6 {[%clk 0:02:13.6]} 19. h3 {[%clk 0:02:20.3]} 19...
Qd7 {[%clk 0:02:10]} 20. Ne5 {[%clk 0:02:17.5]} 20... Bxe5 {[%clk 0:02:09.4]}
21. dxe5 {[%clk 0:02:18.4]} 21... Qc7 {[%clk 0:01:54.8]} 22. e4 {[%clk
0:02:09.4]} 22... Qxe5 {[%clk 0:01:42.3]} 23. exd5 {[%clk 0:02:09.2]} 23... exd5
{[%clk 0:01:42.3]} 24. Nxd5 {[%clk 0:01:57.5]} 24... Rfd8 {[%clk 0:01:37.5]} 25.
Rd1 {[%clk 0:01:56.4]} 25... Kg7 {[%clk 0:01:37.2]} 26. Qf3 {[%clk 0:01:50.2]}
26... Rc5 {[%clk 0:01:26.6]} 27. Ne3 {[%clk 0:01:34]} 27... Rxd1+ {[%clk
0:01:25.4]} 28. Qxd1 {[%clk 0:01:34.9]} 28... Qxb2 {[%clk 0:01:20.6]} 29. Qf3
{[%clk 0:01:21.7]} 29... Qe5 {[%clk 0:01:16.1]} 30. g3 {[%clk 0:01:16.3]} 30...
Rc3 {[%clk 0:01:09.5]} 31. Qg4 {[%clk 0:00:58.8]} 31... Rxe3 {[%clk 0:01:08]}
32. fxe3 {[%clk 0:00:58.3]} 32... Qxe3+ {[%clk 0:01:08.5]} 33. Kg2 {[%clk
0:00:58]} 33... Qe5 {[%clk 0:01:00.5]} 34. a4 {[%clk 0:00:55.7]} 34... a5 {[%clk
0:00:58.8]} 35. h4 {[%clk 0:00:53.6]} 35... h5 {[%clk 0:00:58.1]} 36. Qd1 {[%clk
0:00:53.2]} 36... Qb2+ {[%clk 0:00:52.7]} 37. Kh3 {[%clk 0:00:51.6]} 37... b5
{[%clk 0:00:44.6]} 38. axb5 {[%clk 0:00:49.1]} 38... Qxb5 {[%clk 0:00:45.5]} 39.
Qd4+ {[%clk 0:00:48.6]} 39... Kh7 {[%clk 0:00:45.8]} 40. Qf4 {[%clk 0:00:44.6]}
40... Qf5+ {[%clk 0:00:44.5]} 41. Kg2 {[%clk 0:00:41.2]} 41... Qxf4 {[%clk
0:00:44.1]} 42. gxf4 {[%clk 0:00:42.1]} 42... a4 {[%clk 0:00:38.5]} 0-1

[Event "Early-Titled-Tuesday-Blitz-October-03-2023"]
[Site "Chess.com"]
[Date "2023.10.03"]
[Round "10"]
[White "whiteglovethief"]
[Black "Aleksandar-Topalov"]
[Result "1-0"]
[WhiteElo "2519"]
[BlackElo "2413"]
[TimeControl "180+1"]
[EndTime "9:56:03 PDT"]
[Termination "whiteglovethief won on time"]

1. e4 {[%clk 0:03:00.9]} 1... e6 {[%clk 0:02:59.9]} 2. d4 {[%clk 0:03:00.3]}
2... d5 {[%clk 0:03:00.1]} 3. Nd2 {[%clk 0:03:00.4]} 3... Nf6 {[%clk 0:02:59.6]}
4. Bd3 {[%clk 0:02:59.3]} 4... b6 {[%clk 0:02:48.4]} 5. Qe2 {[%clk 0:02:55.3]}
5... dxe4 {[%clk 0:02:36.8]} 6. Nxe4 {[%clk 0:02:54.8]} 6... Bb7 {[%clk
0:02:35.7]} 7. Nf3 {[%clk 0:02:53.9]} 7... Nbd7 {[%clk 0:02:34.1]} 8. Bg5 {[%clk
0:02:53.2]} 8... Be7 {[%clk 0:02:33.8]} 9. O-O-O {[%clk 0:02:53.1]} 9... a6
{[%clk 0:02:30.5]} 10. h4 {[%clk 0:02:52.7]} 10... Nd5 {[%clk 0:02:26.1]} 11. c3
{[%clk 0:02:48.6]} 11... Bxg5+ {[%clk 0:02:16.8]} 12. hxg5 {[%clk 0:02:48.1]}
12... Nf4 {[%clk 0:02:16.8]} 13. Qe3 {[%clk 0:02:46.9]} 13... Nxd3+ {[%clk
0:02:16.8]} 14. Qxd3 {[%clk 0:02:45.2]} 14... Qe7 {[%clk 0:02:14.1]} 15. Ng3
{[%clk 0:02:37]} 15... O-O-O {[%clk 0:02:11.9]} 16. Rxh7 {[%clk 0:02:34.4]}
16... Rxh7 {[%clk 0:02:12.1]} 17. Qxh7 {[%clk 0:02:32.9]} 17... Bxf3 {[%clk
0:02:11.9]} 18. gxf3 {[%clk 0:02:32.1]} 18... Qxg5+ {[%clk 0:02:12]} 19. Kb1
{[%clk 0:02:30.2]} 19... Nf6 {[%clk 0:02:03.7]} 20. Qd3 {[%clk 0:02:28.2]} 20...
Kb7 {[%clk 0:02:00.4]} 21. Ne4 {[%clk 0:02:28.3]} 21... Qf5 {[%clk 0:01:50]} 22.
a3 {[%clk 0:02:24.4]} 22... Nd5 {[%clk 0:01:39.8]} 23. Ka2 {[%clk 0:02:22]}
23... Nf4 {[%clk 0:01:37.4]} 24. Qf1 {[%clk 0:02:14]} 24... Ka7 {[%clk
0:01:32.9]} 25. Ka1 {[%clk 0:02:10.6]} 25... Nd5 {[%clk 0:01:27.2]} 26. c4
{[%clk 0:02:06.6]} 26... Nf6 {[%clk 0:01:08.2]} 27. Qe2 {[%clk 0:02:05.2]} 27...
Nh5 {[%clk 0:00:51.6]} 28. Nc3 {[%clk 0:01:57.2]} 28... Nf4 {[%clk 0:00:46.4]}
29. Qe4 {[%clk 0:01:53.3]} 29... g6 {[%clk 0:00:27.6]} 30. d5 {[%clk 0:01:47.9]}
30... exd5 {[%clk 0:00:23.3]} 31. Qxf5 {[%clk 0:01:47.3]} 31... gxf5 {[%clk
0:00:21.5]} 32. Rd4 {[%clk 0:01:42.5]} 32... Ne6 {[%clk 0:00:16.1]} 33. Rxd5
{[%clk 0:01:43]} 33... Rxd5 {[%clk 0:00:09.7]} 34. Nxd5 {[%clk 0:01:43.9]} 34...
Kb7 {[%clk 0:00:08.8]} 35. Kb1 {[%clk 0:01:42.5]} 35... c6 {[%clk 0:00:08.2]}
36. Ne3 {[%clk 0:01:40.9]} 36... f4 {[%clk 0:00:08.5]} 37. Ng2 {[%clk 0:01:41]}
37... Kc7 {[%clk 0:00:07.6]} 38. Kc2 {[%clk 0:01:41.6]} 38... Kd6 {[%clk
0:00:08]} 39. Kd3 {[%clk 0:01:42.3]} 39... Ke5 {[%clk 0:00:08.6]} 40. b4 {[%clk
0:01:40.5]} 40... c5 {[%clk 0:00:07.4]} 41. b5 {[%clk 0:01:39.9]} 41... axb5
{[%clk 0:00:07.3]} 42. cxb5 {[%clk 0:01:40.8]} 42... Nd4 {[%clk 0:00:07.7]} 43.
a4 {[%clk 0:01:38.9]} 43... Nxf3 {[%clk 0:00:07.9]} 44. Kc4 {[%clk 0:01:32.3]}
44... Nd4 {[%clk 0:00:07.7]} 45. Ne1 {[%clk 0:01:30.9]} 45... Ke4 {[%clk
0:00:07.4]} 46. Nd3 {[%clk 0:01:27.4]} 46... Kf3 {[%clk 0:00:05.6]} 47. Nxc5
{[%clk 0:01:25.8]} 47... bxc5 {[%clk 0:00:04.8]} 48. a5 {[%clk 0:01:26.5]} 1-0

[Event "Early-Titled-Tuesday-Blitz-October-03-2023"]
[Site "Chess.com"]
[Date "2023.10.03"]
[Round "10"]
[White "betta2004"]
[Black "invisible_s0ul"]
[Result "1-0"]
[WhiteElo "2509"]
[BlackElo "2287"]
[TimeControl "180+1"]
[EndTime "9:56:06 PDT"]
[Termination "betta2004 won by checkmate"]

1. d4 {[%clk 0:02:54]} 1... Nf6 {[%clk 0:02:56.8]} 2. Nc3 {[%clk 0:02:54.1]}
2... d5 {[%clk 0:02:52.7]} 3. Bf4 {[%clk 0:02:54.2]} 3... e6 {[%clk 0:02:46.5]}
4. Nb5 {[%clk 0:02:53]} 4... Na6 {[%clk 0:02:42.5]} 5. e3 {[%clk 0:02:53.1]}
5... c6 {[%clk 0:02:39.2]} 6. Nc3 {[%clk 0:02:53]} 6... Nc7 {[%clk 0:02:38.6]}
7. a3 {[%clk 0:02:53]} 7... Bd6 {[%clk 0:02:37.7]} 8. Nf3 {[%clk 0:02:53.1]}
8... Bxf4 {[%clk 0:02:36.7]} 9. exf4 {[%clk 0:02:54]} 9... O-O {[%clk
0:02:33.9]} 10. Bd3 {[%clk 0:02:53.5]} 10... Nh5 {[%clk 0:02:28.2]} 11. g3
{[%clk 0:02:53.3]} 11... Nf6 {[%clk 0:02:16.9]} 12. O-O {[%clk 0:02:52.2]} 12...
b6 {[%clk 0:02:13.8]} 13. Ne5 {[%clk 0:02:50.9]} 13... c5 {[%clk 0:02:11.8]} 14.
Be2 {[%clk 0:02:49.4]} 14... Bb7 {[%clk 0:02:06.7]} 15. Bf3 {[%clk 0:02:46.6]}
15... Rc8 {[%clk 0:02:06]} 16. Ne2 {[%clk 0:02:40]} 16... Ba6 {[%clk 0:01:59.9]}
17. c3 {[%clk 0:02:37.1]} 17... Nce8 {[%clk 0:01:55.2]} 18. Re1 {[%clk
0:02:33.7]} 18... Nd6 {[%clk 0:01:54.7]} 19. Kg2 {[%clk 0:02:21.9]} 19... Nfe4
{[%clk 0:01:50.3]} 20. dxc5 {[%clk 0:02:22]} 20... bxc5 {[%clk 0:01:48.3]} 21.
Nc1 {[%clk 0:02:21.9]} 21... f6 {[%clk 0:01:42.9]} 22. Ned3 {[%clk 0:02:20.1]}
22... Qb6 {[%clk 0:01:36.9]} 23. Rb1 {[%clk 0:02:09.8]} 23... c4 {[%clk
0:01:32]} 24. Nb4 {[%clk 0:02:03.3]} 24... Qxf2+ {[%clk 0:01:25.7]} 25. Kh1
{[%clk 0:02:03.9]} 25... Nd2 {[%clk 0:01:05.9]} 26. Nxa6 {[%clk 0:02:03]} 26...
Nxb1 {[%clk 0:00:36.6]} 27. Rxe6 {[%clk 0:01:53.3]} 27... Nd2 {[%clk 0:00:25.8]}
28. Bxd5 {[%clk 0:01:49.9]} 28... Nf7 {[%clk 0:00:24.7]} 29. Re2 {[%clk
0:01:47.5]} 29... Qb6 {[%clk 0:00:23.2]} 30. Re6 {[%clk 0:01:39.5]} 30... Qf2
{[%clk 0:00:22.1]} 31. Re2 {[%clk 0:01:36.6]} 31... Qb6 {[%clk 0:00:22.7]} 32.
Qxd2 {[%clk 0:01:35.3]} 32... Qxa6 {[%clk 0:00:21.6]} 33. Re7 {[%clk 0:01:35.9]}
33... h6 {[%clk 0:00:02.9]} 34. Qe2 {[%clk 0:01:34.6]} 34... Qd6 {[%clk
0:00:02.3]} 35. Qe6 {[%clk 0:01:28.6]} 35... Qxe6 {[%clk 0:00:02.3]} 36. Bxe6
{[%clk 0:01:29.5]} 36... Rcd8 {[%clk 0:00:01.8]} 37. Ne2 {[%clk 0:01:28.7]}
37... Rd1+ {[%clk 0:00:02.5]} 38. Kg2 {[%clk 0:01:28.2]} 38... Rd2 {[%clk
0:00:03.4]} 39. Kf3 {[%clk 0:01:28.8]} 39... Rxb2 {[%clk 0:00:03.9]} 40. Nd4
{[%clk 0:01:29.4]} 40... Rb6 {[%clk 0:00:04.2]} 41. Bxc4 {[%clk 0:01:29.4]}
41... Rd6 {[%clk 0:00:03.9]} 42. Nf5 {[%clk 0:01:29.5]} 42... Rc6 {[%clk
0:00:04]} 43. Bd5 {[%clk 0:01:29.2]} 43... Rxc3+ {[%clk 0:00:04.4]} 44. Kg4
{[%clk 0:01:29.8]} 44... Rc5 {[%clk 0:00:04.9]} 45. Be6 {[%clk 0:01:29.5]} 45...
Ra5 {[%clk 0:00:04.2]} 46. Kh5 {[%clk 0:01:29.6]} 46... Kh8 {[%clk 0:00:03.1]}
47. Kg6 {[%clk 0:01:26.8]} 47... Nd8 {[%clk 0:00:02.8]} 48. Rxg7 {[%clk
0:01:23.7]} 48... Nxe6 {[%clk 0:00:02.8]} 49. Rh7+ {[%clk 0:01:24.3]} 49... Kg8
{[%clk 0:00:03.1]} 50. Nxh6# {[%clk 0:01:25.2]} 1-0

[Event "Early-Titled-Tuesday-Blitz-October-03-2023"]
[Site "Chess.com"]
[Date "2023.10.03"]
[Round "10"]
[White "blitzking1729"]
[Black "Duhless"]
[Result "1-0"]
[WhiteElo "2741"]
[BlackElo "2943"]
[TimeControl "180+1"]
[EndTime "9:56:08 PDT"]
[Termination "blitzking1729 won by resignation"]

1. Nf3 {[%clk 0:03:00.9]} 1... d5 {[%clk 0:01:29.9]} 2. e3 {[%clk 0:02:59]} 2...
Nf6 {[%clk 0:01:29.7]} 3. c4 {[%clk 0:02:59.4]} 3... e6 {[%clk 0:01:30.6]} 4.
Nc3 {[%clk 0:02:59.5]} 4... Nbd7 {[%clk 0:01:30.1]} 5. b3 {[%clk 0:02:59.5]}
5... a6 {[%clk 0:01:29.5]} 6. Bb2 {[%clk 0:02:59.4]} 6... b6 {[%clk 0:01:29.8]}
7. cxd5 {[%clk 0:02:56.5]} 7... exd5 {[%clk 0:01:29.8]} 8. Rc1 {[%clk
0:02:55.4]} 8... Bb7 {[%clk 0:01:29.7]} 9. g3 {[%clk 0:02:55.8]} 9... Bd6 {[%clk
0:01:29.1]} 10. Bg2 {[%clk 0:02:56.1]} 10... Qe7 {[%clk 0:01:29.8]} 11. O-O
{[%clk 0:02:56.3]} 11... h5 {[%clk 0:01:29.7]} 12. h4 {[%clk 0:02:49]} 12...
O-O-O {[%clk 0:01:27.8]} 13. Ne2 {[%clk 0:02:46.3]} 13... g6 {[%clk 0:01:20.7]}
14. Nfd4 {[%clk 0:02:36.4]} 14... c5 {[%clk 0:01:18.2]} 15. b4 {[%clk
0:02:36.1]} 15... Kb8 {[%clk 0:01:17.5]} 16. bxc5 {[%clk 0:02:36.3]} 16... Nxc5
{[%clk 0:01:16.4]} 17. Rb1 {[%clk 0:02:30]} 17... Ng4 {[%clk 0:01:13.3]} 18. Nf3
{[%clk 0:02:24.5]} 18... Rhe8 {[%clk 0:01:10.1]} 19. Bd4 {[%clk 0:02:04.3]}
19... b5 {[%clk 0:01:05.7]} 20. d3 {[%clk 0:01:58.6]} 20... Rc8 {[%clk
0:01:02.6]} 21. Qd2 {[%clk 0:01:58.3]} 21... Na4 {[%clk 0:01:00.3]} 22. Nf4
{[%clk 0:01:44.3]} 22... Ba3 {[%clk 0:00:51.5]} 23. Qa5 {[%clk 0:01:29.9]} 23...
Rc2 {[%clk 0:00:43.1]} 24. Ng5 {[%clk 0:01:27.1]} 24... Rxa2 {[%clk 0:00:16.1]}
25. Nxd5 {[%clk 0:01:23.1]} 25... Qd8 {[%clk 0:00:13.9]} 26. Rxb5 {[%clk
0:01:01.3]} 26... axb5 {[%clk 0:00:13.8]} 27. Qxb5 {[%clk 0:01:01.2]} 27... Bb2
{[%clk 0:00:08]} 28. Nb4 {[%clk 0:00:51.9]} 28... Qc8 {[%clk 0:00:07.1]} 29.
Bxb7 {[%clk 0:00:44.4]} 29... Qxb7 {[%clk 0:00:05.4]} 30. Qxe8+ {[%clk
0:00:44.4]} 1-0

[Event "Early-Titled-Tuesday-Blitz-October-03-2023"]
[Site "Chess.com"]
[Date "2023.10.03"]
[Round "10"]
[White "Maxfan2008"]
[Black "MAGMAchess02"]
[Result "1-0"]
[WhiteElo "2577"]
[BlackElo "2373"]
[TimeControl "180+1"]
[EndTime "9:56:16 PDT"]
[Termination "Maxfan2008 won by resignation"]

1. d4 {[%clk 0:03:00.9]} 1... Nf6 {[%clk 0:02:55.7]} 2. c4 {[%clk 0:03:00.7]}
2... c5 {[%clk 0:02:56.1]} 3. d5 {[%clk 0:03:00.8]} 3... b5 {[%clk 0:02:56.2]}
4. cxb5 {[%clk 0:03:01.7]} 4... a6 {[%clk 0:02:56.6]} 5. bxa6 {[%clk 0:03:02.6]}
5... g6 {[%clk 0:02:56.6]} 6. Nc3 {[%clk 0:03:02.8]} 6... Bg7 {[%clk 0:02:56.8]}
7. Nf3 {[%clk 0:03:02.4]} 7... O-O {[%clk 0:02:56.7]} 8. g3 {[%clk 0:03:02.6]}
8... d6 {[%clk 0:02:55.9]} 9. Bg2 {[%clk 0:03:02.8]} 9... Nbd7 {[%clk
0:02:52.9]} 10. O-O {[%clk 0:03:00.1]} 10... Nb6 {[%clk 0:02:52.8]} 11. Ne1
{[%clk 0:02:57.5]} 11... Bxa6 {[%clk 0:02:48.4]} 12. Nc2 {[%clk 0:02:56.9]}
12... Qd7 {[%clk 0:02:40]} 13. Ne3 {[%clk 0:02:53.8]} 13... Rfb8 {[%clk
0:02:37.9]} 14. Qc2 {[%clk 0:02:51.6]} 14... Ne8 {[%clk 0:02:31.7]} 15. b3
{[%clk 0:02:32.4]} 15... Nc7 {[%clk 0:02:15.4]} 16. Bb2 {[%clk 0:02:27.6]} 16...
c4 {[%clk 0:02:15.5]} 17. b4 {[%clk 0:02:19.5]} 17... Bb7 {[%clk 0:02:00.5]} 18.
a4 {[%clk 0:01:55.6]} 18... Bxc3 {[%clk 0:01:49.2]} 19. Qxc3 {[%clk 0:01:49.8]}
19... f6 {[%clk 0:01:49.2]} 20. a5 {[%clk 0:01:35.4]} 20... Nbxd5 {[%clk
0:01:47.2]} 21. Nxd5 {[%clk 0:01:22.2]} 21... Nxd5 {[%clk 0:01:42.3]} 22. Qxc4
{[%clk 0:01:20.5]} 22... e6 {[%clk 0:01:42.6]} 23. b5 {[%clk 0:01:01.7]} 23...
Rc8 {[%clk 0:01:16.8]} 24. Qb3 {[%clk 0:00:31.8]} 24... Rc5 {[%clk 0:01:16.1]}
25. a6 {[%clk 0:00:25.4]} 25... Bc8 {[%clk 0:01:16.3]} 26. b6 {[%clk 0:00:13.1]}
26... Bxa6 {[%clk 0:01:06.9]} 27. Rxa6 {[%clk 0:00:09.5]} 27... Rxa6 {[%clk
0:01:03.4]} 28. b7 {[%clk 0:00:09.9]} 28... Rb5 {[%clk 0:00:32]} 29. b8=Q+
{[%clk 0:00:09]} 29... Rxb8 {[%clk 0:00:32.1]} 30. Qxb8+ {[%clk 0:00:09.7]}
30... Kg7 {[%clk 0:00:32.7]} 31. Bxd5 {[%clk 0:00:09.5]} 31... exd5 {[%clk
0:00:33.6]} 32. Qb3 {[%clk 0:00:09]} 32... Qf5 {[%clk 0:00:30.5]} 33. Qb7+
{[%clk 0:00:07.9]} 1-0